bitfinex/quotes_SOLUSD_20220117
["timestamp","ask_amount","ask_price","bid_price","bid_amount"]
[1642454530794,10.29,138.39,138.31,5.0]
[1642454530989,118.8169326,138.38,138.31,5.0]
[1642454531193,119.0669326,138.38,138.31,5.0]
[1642454531389,125.0669326,138.38,138.31,5.0]
[1642454532489,125.0669326,138.38,138.31,20.23056235]
[1642454533191,125.0669326,138.38,138.31,5.0]
[1642454533390,125.3269326,138.38,138.31,5.0]
[1642454533792,127.08313218,138.38,138.31,5.0]
[1642454535091,10.29,138.37,138.31,5.0]
[1642454535292,10.8467,138.36,138.31,5.0]
[1642454535491,12.60289958,138.36,138.31,5.0]
[1642454535690,71.89,138.35,138.31,5.0]
[1642454535890,37.97955983,138.34,138.31,5.0]
[1642454536393,115.86955983,138.34,138.31,5.0]
[1642454537726,126.71685983,138.34,138.31,5.0]
[1642454539125,0.25,138.33,138.31,5.0]
[1642454539424,82.9873,138.33,138.31,5.0]
[1642454539825,88.9873,138.33,138.31,5.0]
[1642454540328,90.74349958,138.33,138.31,5.0]
[1642454540525,91.00349958,138.33,138.31,5.0]
[1642454542629,89.2473,138.33,138.31,5.0]
[1642454543228,16.8473,138.33,138.31,5.0]
[1642454543429,48.26955983,138.34,138.31,5.0]
[1642454543628,54.26955983,138.34,138.31,5.0]
[1642454545635,65.11575983,138.34,138.31,5.0]
[1642454546639,65.37575983,138.34,138.31,5.0]
[1642454546837,0.25,138.33,138.31,5.0]
[1642454547237,11.097,138.33,138.31,5.0]
[1642454547638,17.097,138.33,138.31,5.0]
[1642454549839,17.097,138.33,138.29,0.36141931]
[1642454550240,17.357,138.33,138.29,0.36141931]
[1642454551440,17.357,138.33,138.24,0.08571429]
[1642454551644,83.93619958,138.32,138.24,0.08571429]
[1642454551841,10.8504,138.3,138.24,0.08571429]
[1642454552041,29.9504,138.3,138.24,0.08571429]
[1642454552242,35.9504,138.3,138.24,0.08571429]
[1642454552443,39.42779826,138.29,138.24,0.08571429]
[1642454552642,10.29,138.28,138.24,0.08571429]
[1642454552847,41.0,138.27,138.23,0.07962902]
[1642454553042,21.1453,138.26,138.23,0.07962902]
[1642454553243,27.1453,138.26,138.23,0.07962902]
[1642454553443,28.90149958,138.26,138.23,0.07962902]
[1642454553643,45.27319266,138.25,138.23,1e-08]
[1642454553844,10.29,138.24,138.18,0.08545918]
[1642454554044,16.293,138.24,138.18,0.08545918]
[1642454554245,33.1497,138.24,138.18,0.08545918]
[1642454554444,1.75619958,138.23,138.18,0.08545918]
[1642454554646,46.64140264,138.22,138.18,0.08545918]
[1642454554846,52.64140264,138.22,138.18,0.08545918]
[1642454555044,52.64140264,138.22,138.11,40.91591286]
[1642454555244,0.25,138.21,138.11,9.91991771]
[1642454555444,0.25,138.21,138.1,126.24055997]
[1642454555445,11.1066,138.21,138.1,126.24055997]
[1642454555644,11.1066,138.21,138.1,130.5568]
[1642454555873,23.2776,138.21,138.1,119.7]
[1642454556072,23.2776,138.21,138.11,36.53006622]
[1642454556273,23.2776,138.21,138.1,116.2]
[1642454556475,23.2776,138.21,138.11,6.0]
[1642454556672,23.2776,138.21,138.1,6.0]
[1642454556875,16.8566,138.21,138.1,16.8571]
[1642454557272,16.8566,138.21,138.11,39.23188946]
[1642454557472,6.0,138.21,138.11,40.91564943]
[1642454557674,6.0,138.22,138.11,46.91564943]
[1642454557875,10.8552,138.23,138.11,47.17564943]
[1642454558174,10.8552,138.23,138.13,10.8551]
[1642454558373,10.8552,138.23,138.14,28.9287322]
[1642454559274,10.29,138.24,138.14,39.7836322]
[1642454559476,10.29,138.26,138.15,1.68375997]
[1642454559773,10.29,138.28,138.16,0.25]
[1642454559973,47.93843469,138.27,138.16,0.25]
[1642454560174,47.93843469,138.27,138.17,1.68375997]
[1642454560473,58.79053469,138.27,138.17,12.53585997]
[1642454560673,58.79053469,138.27,138.15,1.68375997]
[1642454560976,10.29,138.26,138.13,23.3533]
[1642454561172,71.89,138.25,138.13,23.3533]
[1642454561373,77.89,138.25,138.13,23.3533]
[1642454561672,46.53989995,138.24,138.13,70.82987089]
[1642454561875,52.78989995,138.24,138.14,0.25]
[1642454562272,52.78989995,138.24,138.13,70.82987089]
[1642454562473,52.78989995,138.24,138.14,0.25]
[1642454562675,10.8548,138.23,138.15,10.8539]
[1642454562873,16.8548,138.23,138.15,10.8539]
[1642454563673,16.8548,138.23,138.16,4.12553952]
[1642454565177,17.1148,138.23,138.16,24.55959029]
[1642454565377,0.25,138.22,138.16,24.55959029]
[1642454565577,6.26,138.23,138.16,35.41299029]
[1642454565777,0.26,138.23,138.17,0.25]
[1642454566077,10.29,138.26,138.17,0.25]
[1642454566778,48.26695137,138.25,138.17,10.8524]
[1642454566977,48.51695137,138.25,138.17,10.8524]
[1642454567179,48.26695137,138.25,138.17,10.8524]
[1642454567378,48.52695137,138.25,138.18,0.25]
[1642454568578,59.38045137,138.25,138.17,10.8524]
[1642454568778,65.38045137,138.25,138.17,10.8524]
[1642454569379,65.38045137,138.25,138.18,4.12488607]
[1642454569581,59.38045137,138.25,138.18,4.12488607]
[1642454569782,48.52695137,138.25,138.18,14.97708607]
[1642454570386,48.26695137,138.25,138.19,47.47657089]
[1642454570681,10.29,138.26,138.19,47.47657089]
[1642454570882,10.8516,138.28,138.19,58.32787089]
[1642454571380,60.95,138.31,138.19,58.32787089]
[1642454571584,6.0,138.29,138.2,0.25]
[1642454571783,53.70900516,138.3,138.2,8.831]
[1642454572180,6.0,138.3,138.2,8.831]
[1642454572681,0.25,138.29,138.21,10.8494]
[1642454573382,0.25,138.29,138.22,20.43405077]
[1642454573682,10.29,138.31,138.23,0.25]
[1642454573882,5.443,138.63,138.23,0.25]
[1642454573883,10.29,138.34,138.23,0.25]
[1642454574084,10.29,138.36,138.23,47.1893]
[1642454574282,10.29,138.36,138.23,55.13035063]
[1642454574687,44.77310155,138.35,138.23,55.13035063]
[1642454575286,50.77310155,138.35,138.23,55.13035063]
[1642454575685,50.77310155,138.35,138.23,65.97815063]
[1642454575885,50.77310155,138.35,138.24,10.29]
[1642454576085,10.29,138.38,138.24,82.18]
[1642454576287,355.2489375,138.4,138.25,1.93105063]
[1642454576485,10.29,138.41,138.26,10.29]
[1642454576686,10.29,138.41,138.28,10.8427]
[1642454576884,10.29,138.41,138.29,0.25]
[1642454577085,47.56139836,138.4,138.29,46.32058436]
[1642454577287,47.56139836,138.4,138.29,46.58058436]
[1642454578587,47.56139836,138.4,138.32,10.8403]
[1642454578786,0.25,138.39,138.32,38.9133373]
[1642454579186,47.56139836,138.4,138.33,0.25]
[1642454579587,47.56139836,138.4,138.29,84.1175]
[1642454579887,47.56139836,138.4,138.3,0.25]
[1642454580088,53.56139836,138.4,138.3,0.25]
[1642454580289,1.75619958,138.39,138.29,6.0]
[1642454580587,7.75619958,138.39,138.29,10.29]
[1642454580787,8.01619958,138.39,138.29,10.29]
[1642454580987,1.75619958,138.38,138.24,57.0956]
[1642454581188,41.92668069,138.37,138.24,57.0956]
[1642454581488,47.92668069,138.37,138.24,57.0956]
[1642454581687,10.846,138.36,138.25,10.846]
[1642454581888,16.846,138.36,138.25,11.096]
[1642454582086,16.846,138.36,138.25,15.2187403]
[1642454582486,0.25,138.35,138.25,15.2187403]
[1642454582687,10.8468,138.34,138.25,15.2187403]
[1642454582890,45.51805013,138.33,138.25,15.2187403]
[1642454583090,45.51805013,138.33,138.25,40.57961154]
[1642454583292,45.51805013,138.33,138.25,36.45687124]
[1642454583490,16.8468,138.34,138.25,36.45687124]
[1642454584089,16.8468,138.34,138.25,36.71687124]
[1642454584290,17.1068,138.34,138.25,36.71687124]
[1642454584492,37.98584413,138.33,138.25,36.46687124]
[1642454584688,37.98584413,138.33,138.26,0.25]
[1642454585088,48.83274413,138.33,138.25,10.846]
[1642454585290,54.83274413,138.33,138.26,4.12255446]
[1642454585692,37.98584413,138.33,138.26,4.12255446]
[1642454585891,37.98584413,138.33,138.26,14.96775446]
[1642454586292,37.98584413,138.33,138.26,10.8452]
[1642454586692,0.26,138.34,138.26,10.8452]
[1642454586892,0.26,138.34,138.27,0.25]
[1642454587092,0.26,138.34,138.27,11.0943]
[1642454587293,0.26,138.35,138.27,11.3543]
[1642454587493,10.29,138.39,138.27,21.6443]
[1642454587691,128.59,138.45,138.28,19.25511062]
[1642454587692,42.99890908,138.38,138.28,19.25511062]
[1642454587893,42.99890908,138.38,138.29,0.25]
[1642454588494,42.99890908,138.38,138.3,10.8417]
[1642454588693,49.25890908,138.38,138.29,0.25]
[1642454589294,0.25,138.37,138.28,41.98301062]
[1642454589696,0.25,138.37,138.29,0.25]
[1642454590499,16.29,138.41,138.29,0.25]
[1642454590700,16.29,138.41,138.29,11.0927]
[1642454590897,6.0,138.41,138.29,18.7347]
[1642454591099,6.0,138.41,138.3,10.29]
[1642454591297,3.75632752,138.42,138.31,39.72032898]
[1642454591497,5.41495617,138.46,138.33,131.0]
[1642454591696,5.41495617,138.46,138.34,10.29]
[1642454591897,5.41495617,138.46,138.37,10.8333]
[1642454592103,5.41495617,138.46,138.37,18.1663]
[1642454592298,3.80452964,138.44,138.38,0.25]
[1642454592501,3.80452964,138.44,138.38,64.80199268]
[1642454592698,3.80452964,138.44,138.36,39.551]
[1642454592898,3.80452964,138.44,138.36,33.811]
[1642454593099,4.06452964,138.44,138.36,33.551]
[1642454593305,6.26,138.44,138.36,2.05970456]
[1642454593500,71.89,138.43,138.29,480.33307358]
[1642454593701,44.02526746,138.42,138.29,480.33307358]
[1642454593900,46.03146704,138.42,138.29,480.33307358]
[1642454594101,1.75619958,138.41,138.29,501.96673156]
[1642454594301,79.64619958,138.41,138.29,526.21993156]
[1642454594503,90.48859958,138.41,138.29,526.21993156]
[1642454594710,90.48859958,138.41,138.29,537.06283156]
[1642454594910,90.48859958,138.41,138.3,0.25]
[1642454595107,90.48859958,138.41,138.29,504.58627358]
[1642454595308,1.75619958,138.4,138.29,480.33307358]
[1642454595508,10.29,138.39,138.29,480.33307358]
[1642454595708,10.8452,138.37,138.29,480.33307358]
[1642454595911,10.8452,138.37,138.25,22.8634]
[1642454596108,125.37670042,138.36,138.24,23.5979]
[1642454596311,131.37670042,138.36,138.24,23.5979]
[1642454596508,130.37670042,138.36,138.24,23.5979]
[1642454596708,10.8489,138.33,138.25,20.60195946]
[1642454596908,6.0,138.33,138.25,20.60195946]
[1642454597132,42.06377557,138.33,138.25,20.60195946]
[1642454597334,0.25,138.32,138.25,20.60195946]
[1642454598136,0.25,138.32,138.25,31.44835946]
[1642454599236,0.25,138.32,138.25,10.8464]
[1642454599438,0.25,138.32,138.24,23.5979]
[1642454600241,0.25,138.32,138.25,42.09190722]
[1642454600945,0.25,138.32,138.24,23.5979]
[1642454601542,11.0977,138.32,138.24,34.445]
[1642454601942,6.25,138.32,138.24,34.445]
[1642454602142,6.25,138.32,138.24,81.64642764]
[1642454602743,0.25,138.32,138.24,34.445]
[1642454602943,6.25,138.32,138.24,34.445]
[1642454603545,0.25,138.32,138.24,34.445]
[1642454603749,6.25,138.32,138.24,34.445]
[1642454604045,17.0978,138.32,138.24,34.445]
[1642454604248,17.0978,138.32,138.22,21.1384]
[1642454604746,71.89,138.31,138.22,10.29]
[1642454605148,60.41943847,138.3,138.22,10.29]
[1642454605350,71.94043847,138.3,138.22,10.29]
[1642454605749,71.94043847,138.3,138.2,10.8497]
[1642454605950,71.94043847,138.3,138.2,16.8497]
[1642454606352,71.94043847,138.3,138.2,10.8497]
[1642454606550,66.41943847,138.3,138.2,10.8497]
[1642454608151,66.41943847,138.3,138.21,0.25]
[1642454608351,66.41943847,138.3,138.22,10.8486]
[1642454608753,0.25,138.29,138.22,10.8486]
[1642454608961,0.25,138.29,138.2,10.55]
[1642454610163,0.25,138.29,138.2,21.3996]
[1642454610356,49.56953847,138.3,138.2,21.3996]
[1642454610555,5.41495617,138.39,138.21,71.89]
[1642454610756,7.60988653,138.38,138.22,34.1234]
[1642454610959,1.60988653,138.38,138.22,36.05645256]
[1642454611255,7.60988653,138.38,138.22,42.05645256]
[1642454611462,45.10608803,138.37,138.23,26.67801548]
[1642454611659,45.10608803,138.37,138.24,10.29]
[1642454611857,82.9852,138.36,138.25,10.8458]
[1642454612058,82.9852,138.36,138.25,21.1358]
[1642454612259,88.9852,138.36,138.25,21.1358]
[1642454612459,88.9852,138.36,138.25,10.29]
[1642454612659,88.7352,138.36,138.25,10.29]
[1642454612859,16.8452,138.36,138.25,10.29]
[1642454613258,10.8483,138.32,138.25,10.29]
[1642454613660,16.8483,138.32,138.25,10.29]
[1642454613961,34.77166843,138.34,138.26,38.05881648]
[1642454614161,34.77166843,138.34,138.26,54.94241648]
[1642454614360,34.77166843,138.34,138.27,0.25]
[1642454614861,34.77166843,138.34,138.26,54.38681648]
[1642454615061,34.77166843,138.34,138.26,48.34881648]
[1642454615262,34.77166843,138.34,138.26,10.29]
[1642454615468,0.25,138.33,138.26,10.29]
[1642454616084,0.25,138.33,138.26,10.55]
[1642454616483,45.87776843,138.34,138.27,0.25]
[1642454616682,45.61776843,138.34,138.27,21.02884684]
[1642454617781,10.8452,138.36,138.27,21.28884684]
[1642454618180,1.60988653,138.38,138.28,10.29]
[1642454618381,1.60988653,138.38,138.29,0.25]
[1642454618582,52.82045617,138.42,138.29,10.54]
[1642454618782,49.35567855,138.41,138.3,51.74881536]
[1642454619183,49.35567855,138.41,138.31,0.25]
[1642454619881,49.35567855,138.41,138.3,41.16631536]
[1642454620081,55.35567855,138.41,138.32,10.8407]
[1642454620380,0.25,138.4,138.32,10.8407]
[1642454620584,0.25,138.4,138.3,23.5]
[1642454620781,0.25,138.4,138.29,10.29]
[1642454620982,54.36567855,138.41,138.29,10.29]
[1642454622183,10.8417,138.4,138.29,21.1333]
[1642454622382,16.8417,138.4,138.29,21.1333]
[1642454623285,27.1317,138.4,138.24,6.1883355]
[1642454623486,10.8475,138.35,138.24,6.1883355]
[1642454623889,36.0,138.34,138.17,132.34413285]
[1642454624088,71.32673943,138.34,138.2,10.29]
[1642454624289,36.1736,138.31,138.19,10.29]
[1642454624491,44.2526,138.31,138.19,10.29]
[1642454624687,50.2526,138.31,138.17,3.75413285]
[1642454624887,60.5426,138.31,138.2,4.1240254]
[1642454625387,46.49119215,138.3,138.2,4.1240254]
[1642454625589,57.34229215,138.3,138.2,4.1240254]
[1642454625788,63.34229215,138.3,138.2,4.1240254]
[1642454626589,63.34229215,138.3,138.17,14.9764254]
[1642454627896,63.34229215,138.3,138.18,4.1240254]
[1642454628197,63.34229215,138.3,138.19,48.37016733]
[1642454628398,73.63229215,138.3,138.18,4.1240254]
[1642454629500,73.63229215,138.3,138.18,52.62004133]
[1642454630101,71.89,138.29,138.18,52.62004133]
[1642454630299,6.0,138.29,138.19,0.25]
[1642454630501,6.0,138.29,138.19,7.355]
[1642454631108,52.49119215,138.3,138.19,7.355]
[1642454631304,63.34069215,138.3,138.19,18.2059]
[1642454631502,63.60069215,138.3,138.19,18.2059]
[1642454633905,63.60069215,138.3,138.19,17.9559]
[1642454634105,63.60069215,138.3,138.2,11.1003]
[1642454634307,63.60069215,138.3,138.21,38.72981281]
[1642454636339,63.60069215,138.3,138.21,49.57961281]
[1642454636536,63.60069215,138.3,138.22,0.25]
[1642454637038,63.60069215,138.3,138.21,49.57961281]
[1642454637539,10.8484,138.32,138.23,10.8478]
[1642454637736,10.29,138.34,138.23,10.8478]
[1642454637936,6.0,138.32,138.24,0.25]
[1642454638136,6.0,138.34,138.24,0.25]
[1642454638336,49.58772398,138.35,138.24,0.25]
[1642454638536,10.847,138.34,138.25,10.8468]
[1642454638736,10.847,138.34,138.22,0.26]
[1642454638936,41.7676,138.34,138.2,10.29]
[1642454639137,43.52379958,138.34,138.2,10.29]
[1642454639442,53.81379958,138.34,138.2,10.29]
[1642454639637,76.99589958,138.34,138.2,10.29]
[1642454639839,76.99589958,138.34,138.2,56.85566765]
[1642454640239,76.99589958,138.34,138.2,10.29]
[1642454640637,76.99589958,138.34,138.21,10.8494]
[1642454640841,76.99589958,138.34,138.21,11.0994]
[1642454641039,77.25589958,138.34,138.21,11.0994]
[1642454641239,77.25589958,138.34,138.22,45.64637134]
[1642454641640,44.47051763,138.32,138.22,45.64637134]
[1642454641840,10.849,138.31,138.22,56.49537134]
[1642454642249,16.849,138.31,138.22,56.49537134]
[1642454642848,88.739,138.31,138.22,56.49537134]
[1642454643548,16.849,138.31,138.22,56.49537134]
[1642454643749,44.47051763,138.32,138.22,56.49537134]
[1642454644148,50.47051763,138.32,138.22,56.49537134]
[1642454644750,50.47051763,138.32,138.22,10.849]
[1642454644951,122.62051763,138.32,138.22,10.849]
[1642454645155,50.73051763,138.32,138.22,10.849]
[1642454645550,61.57851763,138.32,138.22,10.849]
[1642454646651,61.57851763,138.32,138.23,44.73151298]
[1642454647057,61.57851763,138.32,138.23,55.57951298]
[1642454647354,50.73051763,138.32,138.24,0.25]
[1642454647554,44.73051763,138.32,138.24,0.25]
[1642454648556,44.73051763,138.32,138.26,46.50701569]
[1642454648955,44.47051763,138.32,138.26,46.50701569]
[1642454649555,44.47051763,138.32,138.23,10.29]
[1642454649756,44.47051763,138.32,138.24,0.25]
[1642454650358,48.1027,138.34,138.26,10.8458]
[1642454650557,10.29,138.37,138.26,10.8458]
[1642454650958,16.29,138.37,138.26,11.1058]
[1642454651156,16.29,138.37,138.26,10.8458]
[1642454651359,46.79672686,138.36,138.29,10.8435]
[1642454652757,53.05672686,138.36,138.29,10.8435]
[1642454653158,124.94672686,138.36,138.29,10.8435]
[1642454653558,48.0556,138.39,138.3,48.28809707]
[1642454653760,73.64619958,138.41,138.31,0.25]
[1642454653761,1.75619958,138.41,138.31,0.25]
[1642454653960,10.29,138.43,138.31,0.25]
[1642454654360,126.5092,138.45,138.31,0.25]
[1642454654560,44.28678184,138.44,138.31,34.6423]
[1642454654760,50.28678184,138.44,138.31,34.9023]
[1642454655159,126.29638961,138.44,138.31,34.9023]
[1642454655563,10.8399,138.43,138.33,10.8399]
[1642454655760,16.8399,138.43,138.33,60.1871192]
[1642454656160,16.8399,138.43,138.33,10.8399]
[1642454656562,20.95950777,138.43,138.33,10.8399]
[1642454656962,92.84950777,138.43,138.33,10.8399]
[1642454657364,39.65935097,138.41,138.33,10.8399]
[1642454657764,45.65935097,138.41,138.33,10.8399]
[1642454657964,111.54935097,138.41,138.31,21.1316]
[1642454658166,117.54935097,138.41,138.31,10.8416]
[1642454658563,117.54935097,138.41,138.29,10.29]
[1642454658764,117.54935097,138.41,138.3,6.0]
[1642454658964,128.39035097,138.41,138.31,10.29]
[1642454659363,4.11056453,138.4,138.31,10.29]
[1642454659766,10.11056453,138.4,138.31,10.29]
[1642454659966,39.14357086,138.38,138.31,10.29]
[1642454660367,45.14357086,138.38,138.31,10.29]
[1642454661198,56.24687086,138.38,138.31,10.29]
[1642454661403,128.13687086,138.38,138.27,36.1413]
[1642454661599,128.13687086,138.38,138.27,46.6913]
[1642454662500,56.24687086,138.38,138.29,10.8436]
[1642454662700,56.24687086,138.38,138.29,61.07645509]
[1642454663500,39.40357086,138.38,138.29,61.07645509]
[1642454663704,39.40357086,138.38,138.29,61.33645509]
[1642454663901,39.40357086,138.38,138.29,70.19645509]
[1642454665304,0.26,138.38,138.29,70.19645509]
[1642454665504,0.26,138.38,138.29,94.89675509]
[1642454665704,16.8407,138.42,138.29,94.89675509]
[1642454665906,16.8407,138.42,138.3,0.25]
[1642454666104,16.8407,138.42,138.33,10.84]
[1642454666304,49.34069811,138.41,138.33,50.77669067]
[1642454666703,55.34069811,138.41,138.33,50.77669067]
[1642454666903,55.34069811,138.41,138.33,10.84]
[1642454668510,66.18159811,138.41,138.33,10.84]
[1642454668710,66.18159811,138.41,138.31,10.8416]
[1642454668908,66.18159811,138.41,138.3,10.29]
[1642454669308,66.44159811,138.41,138.3,10.29]
[1642454669509,4.12110438,138.4,138.3,10.29]
[1642454669809,39.38504908,138.37,138.3,10.29]
[1642454670211,45.38504908,138.37,138.3,10.29]
[1642454671713,39.38504908,138.37,138.29,35.5433]
[1642454672113,45.38504908,138.37,138.29,35.5433]
[1642454672515,39.38504908,138.37,138.29,35.5433]
[1642454672913,45.38504908,138.37,138.29,35.5433]
[1642454673114,56.22904908,138.37,138.29,35.5433]
[1642454673516,63.33204908,138.37,138.27,21.1346]
[1642454673717,63.33204908,138.37,138.24,10.29]
[1642454673913,23.9188,138.36,138.24,10.29]
[1642454674315,10.8478,138.33,138.22,500.62354679]
[1642454674515,40.55179601,138.32,138.23,10.8478]
[1642454674915,46.55179601,138.32,138.23,10.8478]
[1642454675115,118.44179601,138.32,138.23,10.8478]
[1642454675516,10.8487,138.31,138.23,10.8478]
[1642454675917,10.8487,138.31,138.24,7.1084457]
[1642454676617,17.1087,138.31,138.24,7.1084457]
[1642454678623,71.89,138.3,138.24,7.1084457]
[1642454678820,48.95699025,138.29,138.24,7.1084457]
[1642454679023,48.95699025,138.29,138.23,7.1084457]
[1642454680322,49.21699025,138.29,138.23,7.1084457]
[1642454681125,49.21699025,138.29,138.23,17.9565457]
[1642454681528,0.26,138.29,138.23,17.9565457]
[1642454681926,6.0,138.32,138.23,17.9565457]
[1642454682127,17.1079,138.32,138.23,17.9565457]
[1642454682531,35.88722895,138.31,138.23,17.9565457]
[1642454683428,41.88722895,138.31,138.23,17.9565457]
[1642454683629,52.73632895,138.31,138.23,17.9565457]
[1642454684031,124.62632895,138.31,138.23,17.9565457]
[1642454685332,52.99632895,138.31,138.23,17.9565457]
[1642454685533,46.99632895,138.31,138.23,17.9565457]
[1642454689859,46.99632895,138.31,138.24,48.68960142]
[1642454690059,36.14722895,138.31,138.24,48.68960142]
[1642454690266,36.14722895,138.31,138.25,7.1084457]
[1642454692363,42.14722895,138.31,138.25,7.1084457]
[1642454692561,36.14722895,138.31,138.25,7.1084457]
[1642454693360,35.88722895,138.31,138.25,7.1084457]
[1642454693562,10.8479,138.32,138.25,7.1084457]
[1642454693760,16.8479,138.32,138.25,7.1084457]
[1642454693963,6.0,138.32,138.25,17.9549457]
[1642454694366,16.8468,138.34,138.25,28.2449457]
[1642454694562,54.70345313,138.34,138.25,28.2449457]
[1642454696868,44.11665313,138.34,138.25,28.2449457]
[1642454697066,44.11665313,138.34,138.25,28.5049457]
[1642454700372,44.11665313,138.34,138.25,28.0049457]
[1642454700672,6.26,138.34,138.25,28.0049457]
[1642454700883,23.7398,138.36,138.26,0.25]
[1642454701074,24.8793,138.4,138.29,10.8432]
[1642454701275,48.3004,138.4,138.29,11.1032]
[1642454701674,48.3004,138.4,138.3,1.65421499]
[1642454701873,43.50710043,138.39,138.28,37.79321499]
[1642454702077,43.50710043,138.39,138.28,1.65421499]
[1642454702273,49.50710043,138.39,138.27,39.7831457]
[1642454702475,49.50710043,138.39,138.28,1.65421499]
[1642454702476,43.50710043,138.39,138.28,1.65421499]
[1642454702874,23.726,138.42,138.29,10.29]
[1642454703073,4.1041094,138.44,138.29,18.477]
[1642454703276,4.1041094,138.44,138.3,26.42981499]
[1642454703475,4.1041094,138.45,138.31,10.29]
[1642454703675,14.9425094,138.45,138.31,22.78401499]
[1642454703874,66.84449621,138.45,138.32,45.36709529]
[1642454704074,56.00609621,138.45,138.33,10.29]
[1642454704274,56.00609621,138.45,138.34,0.25]
[1642454704480,56.00609621,138.45,138.36,39.25445417]
[1642454704776,4.1041094,138.44,138.36,39.25445417]
[1642454705276,10.1041094,138.44,138.36,39.25445417]
[1642454705976,6.0,138.44,138.36,39.25445417]
[1642454706176,45.90198681,138.45,138.37,1.65421499]
[1642454706580,46.16198681,138.45,138.36,39.25445417]
[1642454707579,45.90198681,138.45,138.39,41.06351002]
[1642454708283,45.90198681,138.45,138.38,10.8364]
[1642454708886,46.16198681,138.45,138.38,10.8364]
[1642454709285,52.16198681,138.45,138.39,38.07636494]
[1642454709887,56.26609621,138.45,138.39,38.07636494]
[1642454710486,50.26609621,138.45,138.39,38.07636494]
[1642454711188,56.26609621,138.45,138.39,38.07636494]
[1642454711387,56.26609621,138.45,138.38,10.8364]
[1642454711887,52.16198681,138.45,138.4,6.6084457]
[1642454712587,51.90198681,138.45,138.4,6.6084457]
[1642454713088,45.90198681,138.45,138.4,6.6084457]
[1642454713387,4.1041094,138.46,138.4,46.88266758]
[1642454713788,4.1041094,138.46,138.4,6.6084457]
[1642454714590,2.06023959,138.43,138.4,6.6084457]
[1642454714789,2.06023959,138.43,138.41,6.06439994]
[1642454716192,2.32023959,138.43,138.41,6.06439994]
[1642454716593,0.26,138.43,138.41,6.06439994]
[1642454716793,2.06023959,138.44,138.41,6.06439994]
[1642454716994,2.32023959,138.44,138.41,6.06439994]
[1642454718094,2.06023959,138.44,138.41,6.06439994]
[1642454718293,2.06023959,138.44,138.42,6.6084457]
[1642454718696,2.06023959,138.44,138.43,6.06439994]
[1642454720699,4.1041094,138.47,138.43,6.06439994]
[1642454721122,4.1041094,138.47,138.43,16.89699994]
[1642454721321,29.45339745,138.5,138.44,6.6084457]
[1642454721520,0.26,138.47,138.44,6.6084457]
[1642454721823,46.05674215,138.49,138.44,6.6084457]
[1642454722822,46.05674215,138.49,138.45,43.6030362]
[1642454723425,46.05674215,138.49,138.44,17.4402457]
[1642454723824,46.31674215,138.49,138.44,17.4402457]
[1642454725726,118.20674215,138.49,138.44,6.6084457]
[1642454725926,124.20674215,138.49,138.44,6.6084457]
[1642454726128,124.20674215,138.49,138.41,6.6084457]
[1642454726728,135.04174215,138.49,138.41,6.6084457]
[1642454727831,63.15174215,138.49,138.41,6.6084457]
[1642454731835,63.15174215,138.49,138.41,17.4426457]
[1642454732036,52.31674215,138.49,138.41,17.4426457]
[1642454732842,46.31674215,138.49,138.42,11.0834]
[1642454733139,0.26,138.49,138.43,38.23165486]
[1642454733439,29.3697,138.5,138.43,44.84010056]
[1642454733636,23.3697,138.5,138.43,44.84010056]
[1642454733836,111.3407094,138.53,138.43,44.84010056]
[1642454734337,37.83181161,138.52,138.43,44.84010056]
[1642454734537,37.83181161,138.52,138.44,10.8318]
[1642454734738,48.66441161,138.52,138.43,6.6084457]
[1642454735338,54.66441161,138.52,138.43,6.6084457]
[1642454735539,71.89,138.51,138.43,6.6084457]
[1642454735836,6.0,138.51,138.43,69.95683031]
[1642454736037,46.93294275,138.48,138.43,69.95683031]
[1642454736738,46.93294275,138.48,138.43,23.4408457]
[1642454736938,47.19294275,138.48,138.43,23.4408457]